[Event "VII Totalizator Sportowy 2022"]
[Site "Bydgoszcz"]
[Date "2022.07.04"]
[Round "10.18"]
[White "Lambrecht, Tomasz"]
[Black "Kujawski, Adam"]
[Result "1/2-1/2"]
[ECO "A06"]
[WhiteElo "1956"]
[BlackElo "2246"]
[Annotator "TA"]
[PlyCount "102"]
[EventDate "2022.06.25"]
[EventType "swiss"]
[EventCountry "POL"]
[SourceTitle "playchess.com"]
[Source "ChessBase"]
[SourceQuality "1"]
[TimeControl "40/5400+30:1800+30"]

{[%evp 9,102,10,24,25,28,20,33,9,23,0,17,0,0,0,0,-5,17,-13,-10,-17,1,-14,0,0,0,0,0,0,8,-17,19,16,13,15,20,17,15,6,6,0,0,0,0,0,0,0,0,0,6,0,7,0,0,0,18,0,21,0,0,0,0,0,0,0,0,-4,0,-2,-5,-10,0,0,0,0,0,0,0,0,0,0,0,0,0,0,0,0,0,0,0,0,18,6,18,14,32]} 1. Nf3 {[%emt 0:00:11]} d5 {[%emt 0:00:36]} 2. d4 {[%emt 0:01:23]} c6 {[%emt 0:08:14]} 3. c4 {[%emt 0:01:31]} dxc4 {[%emt 0:01:58]} 4. g3 {[%emt 0:01:42]} Nf6 {[%emt 0:01:09]} 5. Bg2 {[%emt 0:00:43]} Nbd7 {[%emt 0:05:22]} (5... b5 {feels hotter.} 6. Ne5 Bb7 7. a4 a6) 6. a4 {[%emt 0:03:15][%mdl 1024] White has compensation. D11: Slav Defence: 3 Nf3 sidelines and 3...Nf6 4 e3 Bg4.} a5 {[%emt 0:01:30]} 7. O-O {[%emt 0:00:47]} g6 {[%emt 0:02:20]} 8. Nbd2 {[%emt 0:07:35] White is slightly better.} Nb6 {[%emt 0:00:57]} 9. Qc2 {[%emt 0:00:25]} Bg7 {[%emt 0:02:03] The position is equal.} 10. Nxc4 {[%emt 0:04:10]} Bf5 {[%emt 0:08:45]} 11. Qb3 {[%emt 0:03:50]} Nxc4 {[%emt 0:06:58]} 12. Qxc4 {[%emt 0:00:29]} Be4 {[%emt 0:13:47]} 13. Qb3 {[%emt 0:02:07]} O-O {[%emt 0:03:11]} 14. Rd1 {[%emt 0:01:56] [#]} Qd6 $146 {[%emt 0:14:30]} ({Predecessor:} 14... Nd7 15. Nh4 Bxg2 16. Kxg2 Qb6 17. Qxb6 Nxb6 18. Bf4 Nd5 19. Nf3 Rfd8 20. Rac1 Nxf4+ 21. gxf4 {1-0 (46) Rausis,I (2557)-Pijpers,A (2348) Leiden 2014}) 15. e3 {[%emt 0:20:31]} Qd5 {[%emt 0:02:23]} 16. Qxd5 {[%emt 0:00:11]} Nxd5 {[%emt 0:06:53]} 17. Bd2 {[%emt 0:01:07]} Rfd8 {[%emt 0:03:00]} 18. Rdc1 {[%emt 0:08:17]} e6 {[%emt 0:00:39]} 19. Be1 {[%emt 0:08:19]} Bf8 {[%emt 0:00:33]} 20. Ne5 {[%emt 0:01:08]} Bxg2 21. Kxg2 {[%emt 0:00:02]} f6 {[%emt 0:06:02]} 22. Nc4 {[%emt 0:00:48]} Nb4 {[%emt 0:00:07]} 23. Bxb4 {[%emt 0:06:21]} Bxb4 {[%emt 0:00:23]} 24. Rc2 {[%emt 0:01:58]} h5 {[%emt 0:01:10]} 25. h3 {[%emt 0:02:46]} Kf7 {[%emt 0:01:10]} 26. Kf3 {[%emt 0:00:51]} Ke7 {[%emt 0:00:20]} 27. Ke2 {[%emt 0:00:45]} Rac8 {[%emt 0:02:29]} 28. Rac1 {[%emt 0:01:03]} Ra8 {[%emt 0:00:30]} 29. Rd1 {[%emt 0:03:55]} Rab8 {[%emt 0:00:45]} 30. Nb6 {[%emt 0:05:10]} Bd6 {[%emt 0:01:39]} 31. Nc4 {[%emt 0:01:00]} Bc7 {[%emt 0:00:58]} 32. Nd2 {[%emt 0:00:12]} e5 {[%emt 0:01:03]} 33. Nb3 {[%emt 0:02:29]} exd4 {[%emt 0:00:21]} 34. Nxd4 {[%emt 0:00:11]} Be5 {[%emt 0:01:16]} 35. Nf3 {[%emt 0:02:09]} Rxd1 {[%emt 0:00:36]} 36. Kxd1 $11 {[%emt 0:00:02][%mdl 4096] Endgame KRB-KRN} Rd8+ {[%emt 0:00:51]} 37. Kc1 {[%emt 0:01:29]} Ke6 {[%emt 0:00:32]} 38. Rc5 {[%emt 0:02:28]} Rd5 {[%emt 0:00:13]} 39. Rc4 {[%emt 0:01:29]} f5 {[%emt 0:01:16]} 40. Kc2 {[%emt 0:00:00]} Bf6 {[%emt 0:00:00]} 41. Ne1 {[%emt 0:04:40]} Kd7 {[%emt 0:21:12]} 42. Nd3 {[%emt 0:08:32]} g5 {[%emt 0:01:12] Prevents Nf4.} 43. Nc5+ {[%emt 0:09:36]} Kc7 {[%emt 0:00:27]} 44. Nd3 {[%emt 0:00:33]} Kd7 {[%emt 0:04:36]} 45. Nc5+ {[%emt 0:00:28]} Kc7 {[%emt 0:00:01]} 46. Nd3 {[%emt 0:00:13]} b6 {[%emt 0:01:35]} 47. b3 {[%emt 0:02:14]} Kd7 {[%emt 0:01:21]} 48. e4 {[%emt 0:02:11]} fxe4 49. Rxe4 {[%emt 0:00:01]} c5 {[%emt 0:05:06]} 50. f4 {[%emt 0:01:26]} Bd4 {[%emt 0:01:34]} 51. g4 {[%emt 0:03:04]} hxg4 {[%emt 0:00:05] An even fight not without its subleties.  Weighted Error Value: White=0.05 (flawless) /Black=0.05 (flawless)} 1/2-1/2

[Event "VII Totalizator Sportowy 2022"]
[Site "Bydgoszcz"]
[Date "2022.07.04"]
[Round "10.19"]
[White "Sliwicki, Damian"]
[Black "Dubnevych, Maksym"]
[Result "1-0"]
[ECO "B24"]
[WhiteElo "2168"]
[BlackElo "2048"]
[Annotator "RC"]
[PlyCount "39"]
[EventDate "2022.06.25"]
[EventType "swiss"]
[EventCountry "POL"]
[SourceTitle "playchess.com"]
[Source "ChessBase"]
[SourceQuality "1"]
[TimeControl "40/5400+30:1800+30"]

1. e4 {[%emt 0:00:02]} c5 {[%emt 0:00:02]} 2. Nc3 {[%emt 0:00:04]} Nc6 {[%emt 0:00:03]} 3. Bb5 {[%emt 0:00:03]} Nd4 {[%emt 0:01:59]} 4. Nf3 {[%emt 0:00:05]} Nxb5 {[%emt 0:01:08]} 5. Nxb5 {[%emt 0:00:04]} a6 {[%emt 0:12:40]} 6. Nc3 {[%emt 0:00:30]} g6 {[%emt 0:01:53]} 7. d4 {[%emt 0:00:21]} Bg7 {[%emt 0:30:16]} 8. dxc5 {[%emt 0:00:08]} Qa5 {[%emt 0:04:03]} 9. O-O {[%emt 0:01:47]} Bxc3 {[%emt 0:00:55]} 10. bxc3 {[%emt 0:00:07]} Qxc3 {[%emt 0:00:41]} 11. Be3 {[%emt 0:01:55]} Qg7 {[%emt 0:06:35]} 12. Qd2 {[%emt 0:02:47]} h5 {[%emt 0:02:22]} 13. Rfe1 {[%emt 0:07:20]} b5 {[%emt 0:14:48]} 14. Rad1 {[%emt 0:08:30]} Nh6 {[%emt 0:04:29]} 15. Qd5 {[%emt 0:06:38]} Rb8 {[%emt 0:01:13]} 16. Bf4 {[%emt 0:00:06]} Rb7 {[%emt 0:00:09]} 17. c6 {[%emt 0:00:24]} Ra7 {[%emt 0:00:01]} 18. Qc5 {[%emt 0:02:58]} Ra8 {[%emt 0:00:01]} 19. cxd7+ {[%emt 0:00:11]} Bxd7 {[%emt 0:00:01]} 20. Rxd7 {[%emt 0:00:08]} 1-0

[Event "VII Totalizator Sportowy 2022"]
[Site "Bydgoszcz"]
[Date "2022.07.04"]
[Round "10.20"]
[White "Rog, Bartlomiej"]
[Black "Kolodziejski, Piotr"]
[Result "1/2-1/2"]
[ECO "B53"]
[WhiteElo "2055"]
[BlackElo "2107"]
[Annotator "RC"]
[PlyCount "25"]
[EventDate "2022.06.25"]
[EventType "swiss"]
[EventCountry "POL"]
[SourceTitle "playchess.com"]
[Source "ChessBase"]
[SourceQuality "1"]
[TimeControl "40/5400+30:1800+30"]

1. e4 {[%emt 0:00:05]} c5 {[%emt 0:00:03]} 2. Nf3 {[%emt 0:00:11]} d6 {[%emt 0:00:16]} 3. d4 {[%emt 0:00:09]} cxd4 {[%emt 0:00:05]} 4. Qxd4 {[%emt 0:00:07]} Nc6 {[%emt 0:00:09]} 5. Bb5 {[%emt 0:00:09]} Bd7 {[%emt 0:00:14]} 6. Qd3 {[%emt 0:00:10]} Nf6 {[%emt 0:01:41]} 7. Bg5 {[%emt 0:00:30]} e6 {[%emt 0:01:34]} 8. Nc3 {[%emt 0:00:10]} a6 {[%emt 0:01:45]} 9. Bxc6 {[%emt 0:00:17]} Bxc6 {[%emt 0:01:17]} 10. O-O-O {[%emt 0:01:17]} Be7 {[%emt 0:04:02]} 11. Nd4 {[%emt 0:00:33]} Qc7 {[%emt 0:17:34]} 12. Rhe1 {[%emt 0:07:29]} O-O-O {[%emt 0:05:51]} 13. Nxc6 {[%emt 0:11:30]} 1/2-1/2

[Event "VII Totalizator Sportowy 2022"]
[Site "Bydgoszcz"]
[Date "2022.07.04"]
[Round "10.21"]
[White "Malczyk, Radoslaw"]
[Black "Jarocka, Liwia"]
[Result "0-1"]
[ECO "A45"]
[WhiteElo "2067"]
[BlackElo "2006"]
[Annotator "NA RC"]
[PlyCount "68"]
[EventDate "2022.06.25"]
[EventType "swiss"]
[EventCountry "POL"]
[SourceTitle "playchess.com"]
[Source "ChessBase"]
[SourceQuality "1"]
[TimeControl "40/5400+30:1800+30"]

1. d4 {[%emt 0:00:05]} Nf6 {[%emt 0:00:10]} 2. Bg5 {[%emt 0:00:10]} e6 {[%emt 0:00:39]} 3. e4 {[%emt 0:00:27]} h6 {[%emt 0:00:33]} 4. Bxf6 {[%emt 0:00:12]} Qxf6 {[%emt 0:00:05]} 5. c3 {[%emt 0:00:29]} d6 {[%emt 0:00:37]} 6. Bd3 {[%emt 0:00:12]} g6 {[%emt 0:00:45]} 7. Ne2 {[%emt 0:00:07]} Bg7 {[%emt 0:00:11]} 8. O-O {[%emt 0:00:07]} Qe7 {[%emt 0:01:29]} 9. f4 {[%emt 0:00:12]} e5 {[%emt 0:01:15]} 10. f5 {[%emt 0:02:14]} gxf5 {[%emt 0:06:26]} 11. exf5 {[%emt 0:00:11]} Nd7 {[%emt 0:00:15]} 12. Kh1 {[%emt 0:00:45]} Nf6 {[%emt 0:01:03]} 13. dxe5 {[%emt 0:00:14]} dxe5 {[%emt 0:01:29]} 14. Ng3 {[%emt 0:01:11]} Bd7 {[%emt 0:14:34]} 15. Nh5 {[%emt 0:03:27]} Nxh5 {[%emt 0:03:07]} 16. Qxh5 {[%emt 0:00:07]} Bc6 {[%emt 0:04:16]} 17. Be2 {[%emt 0:02:12]} Bf6 {[%emt 0:01:02]} 18. Nd2 {[%emt 0:01:57]} O-O-O {[%emt 0:03:27]} 19. Nb3 {[%emt 0:00:21]} Rhg8 {[%emt 0:02:40]} 20. Bf3 {[%emt 0:00:19]} e4 {[%emt 0:00:53]} 21. Be2 {[%emt 0:00:13]} Rg5 {[%emt 0:10:00]} 22. Qh3 {[%emt 0:00:36]} Rdg8 {[%emt 0:02:11]} 23. Na5 {[%emt 0:01:18]} Bd7 {[%emt 0:03:39]} 24. Qe3 {[%emt 0:03:13]} b6 {[%emt 0:00:58]} 25. Ba6+ {[%emt 0:01:15]} Kb8 {[%emt 0:01:21]} 26. Nc4 {[%emt 0:05:42]} Rxg2 {[%emt 0:04:43]} 27. Rg1 {[%emt 0:00:32]} Rxg1+ {[%emt 0:02:03]} 28. Rxg1 {[%emt 0:00:07]} Re8 {[%emt 0:03:31]} 29. a4 {[%emt 0:10:36]} Bxa4 {[%emt 0:07:25]} 30. Ra1 {[%emt 0:00:09]} Bc6 {[%emt 0:01:35]} 31. Na5 {[%emt 0:00:22]} bxa5 {[%emt 0:03:05]} 32. Rxa5 {[%emt 0:00:07]} Bg5 {[%emt 0:00:53]} 33. Qd4 {[%emt 0:06:16]} e3+ {[%emt 0:00:24]} 34. Kg1 {[%emt 0:00:06]} e2 {[%emt 0:01:04]} 0-1

[Event "VII Totalizator Sportowy 2022"]
[Site "Bydgoszcz"]
[Date "2022.07.04"]
[Round "10.22"]
[White "Hulka, Valentyn"]
[Black "Starosciak, Szymon"]
[Result "1/2-1/2"]
[ECO "B20"]
[WhiteElo "2123"]
[BlackElo "1901"]
[Annotator "RC"]
[PlyCount "73"]
[EventDate "2022.06.25"]
[EventType "swiss"]
[EventCountry "POL"]
[SourceTitle "playchess.com"]
[Source "ChessBase"]
[SourceQuality "1"]
[TimeControl "40/5400+30:1800+30"]

1. e4 {[%emt 0:00:04]} c5 {[%emt 0:00:03]} 2. Be2 {[%emt 0:00:03]} Nc6 {[%emt 0:03:22]} 3. f4 {[%emt 0:00:13]} d5 {[%emt 0:02:10]} 4. d3 {[%emt 0:00:01]} g6 {[%emt 0:09:01]} 5. Nf3 {[%emt 0:00:15]} Bg7 {[%emt 0:01:15]} 6. O-O {[%emt 0:00:33]} Bg4 {[%emt 0:04:38]} 7. c3 {[%emt 0:00:58]} e6 {[%emt 0:02:50]} 8. Nbd2 {[%emt 0:01:16]} Nge7 {[%emt 0:01:40]} 9. h3 {[%emt 0:00:11]} Bxf3 {[%emt 0:00:08]} 10. Nxf3 {[%emt 0:00:03]} b5 {[%emt 0:16:44]} 11. Qc2 {[%emt 0:03:44]} O-O {[%emt 0:00:43]} 12. Bd2 {[%emt 0:04:06]} Qb6 {[%emt 0:02:34]} 13. Kh2 {[%emt 0:01:24]} b4 {[%emt 0:01:17]} 14. a3 {[%emt 0:12:03]} bxc3 {[%emt 0:01:32]} 15. bxc3 {[%emt 0:00:08]} Rab8 {[%emt 0:01:45]} 16. Rab1 {[%emt 0:00:56]} Qa6 {[%emt 0:03:39]} 17. exd5 {[%emt 0:05:50]} Nxd5 {[%emt 0:03:18]} 18. a4 {[%emt 0:03:17]} Rxb1 {[%emt 0:10:12]} 19. Rxb1 {[%emt 0:00:15]} Nb6 {[%emt 0:00:12]} 20. Ng5 {[%emt 0:04:00]} Qxa4 {[%emt 0:04:47]} 21. Qxa4 {[%emt 0:00:16]} Nxa4 {[%emt 0:00:05]} 22. Bf3 {[%emt 0:00:37]} Nd8 23. Rb3 {[%emt 0:03:59]} f5 {[%emt 0:13:32]} 24. Ra3 {[%emt 0:02:45]} Nb2 25. Be2 h6 {[%emt 0:05:19]} 26. Nf3 {[%emt 0:00:32]} Nc6 {[%emt 0:00:45]} 27. Ra6 {[%emt 0:02:40]} Rc8 {[%emt 0:00:29]} 28. Ne1 {[%emt 0:00:42]} Kf7 {[%emt 0:03:16]} 29. Bf3 {[%emt 0:00:44]} Ne7 {[%emt 0:00:22]} 30. Rxa7 {[%emt 0:01:33]} Nxd3 {[%emt 0:00:59]} 31. Nxd3 {[%emt 0:00:29]} Rd8 {[%emt 0:00:04]} 32. Be3 {[%emt 0:01:44]} Rxd3 {[%emt 0:00:14]} 33. Bxc5 {[%emt 0:00:02]} Bf6 {[%emt 0:00:22]} 34. Bb4 {[%emt 0:01:25]} e5 {[%emt 0:04:53]} 35. Be2 {[%emt 0:02:05]} Re3 {[%emt 0:01:43]} 36. Bc4+ {[%emt 0:00:13]} Kf8 {[%emt 0:00:12]} 37. Ra6 {[%emt 0:10:32]} 1/2-1/2

[Event "VII Totalizator Sportowy 2022"]
[Site "Bydgoszcz"]
[Date "2022.07.04"]
[Round "10.23"]
[White "Zaninotto, Franco"]
[Black "Zalega, Maciej"]
[Result "1/2-1/2"]
[ECO "B30"]
[WhiteElo "2069"]
[BlackElo "2051"]
[Annotator "NA RC"]
[PlyCount "82"]
[EventDate "2022.06.25"]
[EventType "swiss"]
[EventCountry "POL"]
[SourceTitle "playchess.com"]
[Source "ChessBase"]
[SourceQuality "1"]
[TimeControl "40/5400+30:1800+30"]

1. e4 {[%emt 0:00:07]} c5 {[%emt 0:00:09]} 2. Nf3 {[%emt 0:00:04]} Nc6 {[%emt 0:00:04]} 3. Bb5 {[%emt 0:00:05]} e6 {[%emt 0:00:12]} 4. O-O {[%emt 0:01:10]} Nge7 {[%emt 0:00:24]} 5. Re1 {[%emt 0:00:12]} a6 {[%emt 0:00:35]} 6. Bf1 {[%emt 0:00:23]} d5 {[%emt 0:01:02]} 7. exd5 {[%emt 0:00:31]} Nxd5 {[%emt 0:00:05]} 8. d4 {[%emt 0:01:29]} Nf6 {[%emt 0:04:42]} 9. c3 {[%emt 0:07:22]} cxd4 {[%emt 0:02:18]} 10. cxd4 {[%emt 0:00:09]} Be7 {[%emt 0:01:03]} 11. Nc3 {[%emt 0:00:04]} O-O {[%emt 0:01:09]} 12. a3 {[%emt 0:05:55]} b5 {[%emt 0:03:54]} 13. g3 {[%emt 0:00:56]} Bb7 {[%emt 0:00:23]} 14. Bg2 {[%emt 0:00:12]} Qd7 {[%emt 0:05:29]} 15. Ne5 {[%emt 0:08:24]} Nxe5 {[%emt 0:02:47]} 16. dxe5 {[%emt 0:00:44]} Nd5 {[%emt 0:00:10]} 17. Nxd5 {[%emt 0:01:07]} Bxd5 {[%emt 0:02:23]} 18. Bxd5 {[%emt 0:00:28]} exd5 {[%emt 0:01:06]} 19. Be3 {[%emt 0:02:15]} Rac8 {[%emt 0:02:07]} 20. Qd3 {[%emt 0:01:56]} Qe6 {[%emt 0:02:57]} 21. Rad1 {[%emt 0:03:26]} Rfd8 {[%emt 0:01:11]} 22. Bd4 {[%emt 0:01:51]} Rc4 {[%emt 0:03:04]} 23. Re2 {[%emt 0:06:07]} Rdc8 {[%emt 0:03:32]} 24. Kg2 {[%emt 0:01:14]} Qc6 {[%emt 0:12:07]} 25. f4 {[%emt 0:07:48]} Bc5 {[%emt 0:13:43]} 26. Bxc5 {[%emt 0:03:25]} Rxc5 {[%emt 0:00:03]} 27. Qf3 {[%emt 0:12:38]} h6 {[%emt 0:10:42]} 28. f5 {[%emt 0:04:09]} Rc2 {[%emt 0:03:43]} 29. Rdd2 {[%emt 0:00:44]} Rxd2 {[%emt 0:04:13]} 30. Rxd2 {[%emt 0:00:05]} Rd8 {[%emt 0:00:03]} 31. Rd4 {[%emt 0:07:33]} Qc1 {[%emt 0:06:23]} 32. Rxd5 {[%emt 0:06:54]} Qxb2+ {[%emt 0:02:31]} 33. Kh3 {[%emt 0:00:11]} Re8 {[%emt 0:03:40]} 34. Qe3 {[%emt 0:04:18]} Qa1 {[%emt 0:02:16]} 35. e6 {[%emt 0:04:29]} fxe6 {[%emt 0:03:15]} 36. Re5 {[%emt 0:01:40]} Qf1+ {[%emt 0:00:55]} 37. Kh4 {[%emt 0:00:07]} Rc8 {[%emt 0:01:07]} 38. fxe6 {[%emt 0:04:48]} Qf6+ {[%emt 0:02:07]} 39. Kh3 {[%emt 0:02:18]} Qf1+ {[%emt 0:00:02]} 40. Kh4 {[%emt 0:00:00]} Rc2 {[%emt 0:00:00]} 41. e7 {[%emt 0:06:15]} Qf6+ {[%emt 0:12:44]} 1/2-1/2